bitfinex-derivatives/quotes_ETHF0:USTF0_20210703
["timestamp","ask_amount","ask_price","bid_price","bid_amount"]
[1625277253477,1.37347149,2151.2,2150.3,80.2645017]
[1625277253675,1.92286009,2151.3,2151.0,2.20527]
[1625277253676,2.20527,2151.1,2151.0,2.20527]
[1625277253825,2.20527,2151.1,2151.0,5.31707]
[1625277254134,2.20527,2151.1,2151.0,55.55747]
[1625277254435,1.3733039,2151.6,2151.0,55.55747]
[1625277254845,1.3733039,2151.6,2151.1,5.0]
[1625277254945,1.3733039,2151.6,2151.0,55.55747]
[1625277255096,1.3733039,2151.6,2151.5,41.0388]
[1625277255194,1.3733039,2151.6,2151.5,44.514]
[1625277255345,1.37273033,2152.0,2151.5,61.317064]
[1625277255746,1.37273033,2152.0,2151.9,4.41054]
[1625277255947,2.20527,2152.1,2151.9,4.41054]
[1625277259962,2.20527,2152.1,2151.6,1.3417318]
[1625277260063,5.04497,2152.1,2151.6,1.3417318]
[1625277260464,42.0978,2151.7,2151.0,1.34199835]
[1625277261265,42.0978,2151.7,2150.8,16.87328868]
[1625277261721,2.20527,2151.5,2151.3,2.20527]
[1625277263726,2.20527,2151.8,2151.3,2.20527]
[1625277265827,2.20527,2151.8,2151.7,2.20527]
[1625277266986,2.20527,2151.8,2151.7,41.83687]
[1625277267687,2.20527,2151.8,2151.7,58.595629]
[1625277267787,2.20527,2152.1,2151.7,58.595629]
[1625277268747,2.20527,2152.1,2151.7,18.964029]
[1625277269748,2.20527,2152.1,2152.0,2.20527]
[1625277270056,2.20527,2152.1,2152.0,19.078174]
[1625277272314,2.20527,2152.1,2152.0,2.20527]
[1625277274320,2.20527,2152.1,2152.0,19.202889]
[1625277274517,2.20527,2152.1,2152.0,59.991789]
[1625277274671,2.20527,2152.1,2152.0,42.99417]
[1625277274772,2.20527,2152.1,2152.0,2.20527]
[1625277282455,2.20527,2152.1,2151.0,1.33980282]
[1625277282605,3.20527,2152.1,2151.0,1.33980282]
[1625277283207,3.20527,2152.1,2151.1,16.884959]
[1625277283458,3.20527,2152.1,2151.0,17.007895]
[1625277283659,3.20527,2152.1,2150.9,16.746727]
[1625277283760,3.20527,2152.1,2150.8,15.5304]
[1625277283860,3.20527,2152.1,2151.7,2.20527]
[1625277283959,2.20527,2152.1,2151.7,2.20527]
[1625277284109,2.20527,2152.1,2151.5,2.20527]
[1625277285862,2.20527,2151.6,2151.5,2.20527]
[1625277289653,2.20527,2151.6,2151.5,58.945565]
[1625277290006,2.20527,2151.6,2151.5,19.175265]
[1625277291659,2.20527,2151.6,2151.5,2.20527]
[1625277296769,2.20527,2151.6,2151.5,18.943632]
[1625277302034,4.99547,2151.6,2151.5,18.943632]
[1625277302130,4.99547,2151.6,2151.5,2.20527]
[1625277309210,4.99547,2151.6,2150.8,15.5304]
[1625277309460,4.99547,2151.6,2150.6,1.34199052]
[1625277309560,5.99547,2151.6,2150.6,1.34199052]
[1625277309668,5.99547,2151.6,2150.4,1.34156493]
[1625277309762,49.9466,2150.7,2150.4,1.34156493]
[1625277309911,52.932,2150.7,2150.4,1.34156493]
[1625277310014,2.9854,2150.7,2150.6,2.20527]
[1625277310624,56.4047,2150.7,2150.6,2.20527]
[1625277311024,56.4047,2150.7,2150.5,2.20527]
[1625277311975,2.20527,2150.6,2150.5,2.20527]
[1625277314229,2.20527,2150.9,2150.5,2.20527]
[1625277315480,2.20527,2150.9,2150.5,3.54769511]
[1625277315631,57.0061,2150.8,2150.5,3.54769511]
[1625277315730,2.20527,2150.9,2150.5,3.54769511]
[1625277315981,2.20527,2150.9,2150.8,2.20527]
[1625277319201,57.87577,2150.9,2150.8,2.20527]
[1625277319351,2.20527,2150.9,2150.8,2.20527]
[1625277320305,49.94687,2150.9,2150.8,2.20527]
[1625277322309,49.94687,2150.9,2150.5,3.54769511]
[1625277322967,49.94687,2150.9,2150.5,2.20527]
[1625277324064,2.20527,2150.6,2150.5,2.20527]
[1625277324165,4.59857,2150.6,2150.5,2.20527]
[1625277325669,2.20527,2150.6,2150.5,2.20527]
[1625277329751,2.20527,2150.6,2150.5,5.01707]
[1625277330052,2.20527,2150.9,2150.5,5.01707]
[1625277331962,2.20527,2150.9,2150.5,2.20527]
[1625277332162,45.70337,2150.6,2150.5,2.20527]
[1625277332963,2.20527,2150.6,2150.5,2.20527]
[1625277333818,2.20527,2150.6,2150.2,1.34428048]
[1625277334118,2.20527,2150.3,2150.2,1.34428048]
[1625277334971,2.20527,2150.3,2150.2,18.82887845]
[1625277335523,2.20527,2150.3,2150.2,1.88284145]
[1625277335621,55.21177,2150.3,2150.2,1.88284145]
[1625277335822,2.20527,2150.3,2150.2,1.88284145]
[1625277336022,2.20527,2150.3,2150.2,1.34500252]
[1625277336473,2.20527,2150.3,2150.2,1.88346061]
[1625277337724,2.20527,2150.3,2150.1,4.08873558]
[1625277339082,2.20527,2150.3,2150.2,1.88338349]
[1625277340643,2.20527,2150.3,2150.2,2.69140333]
[1625277345253,2.20527,2150.3,2150.1,4.89553885]
[1625277346719,2.20527,2150.3,2150.2,1.88317304]
[1625277346819,2.20527,2150.3,2150.2,5.10337304]
[1625277347269,2.20527,2150.3,2150.2,5.91101639]
[1625277353429,2.20527,2150.3,2150.2,62.82571639]
[1625277354580,2.20527,2150.3,2150.2,5.91101639]
[1625277354731,2.20527,2150.3,2150.2,3.2202]
[1625277354879,2.20527,2150.3,2150.2,2.5193]
[1625277356083,2.20527,2150.3,2150.2,5.20715025]
[1625277356686,2.20527,2150.3,2150.2,48.83775025]
[1625277356785,1.0,2151.2,2150.2,48.83775025]
[1625277356890,15.2995,2151.8,2150.2,48.83775025]
[1625277357088,15.2995,2151.8,2150.2,53.83775025]
[1625277357188,15.2995,2151.8,2151.3,46.5025]
[1625277357296,15.2995,2151.8,2151.3,49.666]
[1625277357497,1.36981694,2152.4,2151.3,3.1635]
[1625277357789,1.36982899,2152.5,2151.3,3.1635]
[1625277357938,2.36982899,2152.5,2151.3,3.1635]
[1625277358338,2.20527,2151.7,2151.5,2.20527]
[1625277360357,2.20527,2151.6,2151.5,2.20527]
[1625277363613,2.20527,2151.6,2151.3,2.20527]
[1625277363614,5.38437,2151.6,2151.3,2.20527]
[1625277363715,5.38437,2151.6,2151.1,1.34170384]
[1625277364019,5.38437,2151.6,2150.8,1.34277952]
[1625277364116,54.859,2151.1,2150.8,1.34277952]
[1625277364266,57.5009,2151.1,2150.8,1.34277952]
[1625277364415,2.20527,2150.9,2150.8,1.34277952]
[1625277365068,2.20527,2150.9,2150.7,3.54853263]
[1625277367421,2.20527,2150.9,2150.8,1.34385205]
[1625277367822,2.20527,2150.9,2150.7,3.54912907]
[1625277368072,2.20527,2150.9,2150.8,1.34400891]
[1625277369176,2.20527,2150.9,2150.7,1.34416616]
[1625277370127,2.20527,2150.9,2150.8,1.34442293]
[1625277370483,2.20527,2150.9,2150.7,1.34454933]
[1625277370779,2.20527,2150.9,2150.8,1.34447461]
[1625277371729,2.20527,2150.9,2150.7,1.34450364]
[1625277372033,2.20527,2150.9,2150.8,1.34443599]
[1625277372484,2.20527,2150.9,2150.7,1.34463752]
[1625277373939,2.20527,2150.9,2150.6,1.34514289]
[1625277374536,2.20527,2150.8,2150.6,1.34514289]
[1625277379118,2.20527,2150.8,2150.7,1.34367664]
[1625277379816,2.20527,2150.8,2150.6,4.99409922]
[1625277380819,2.20527,2150.8,2150.7,1.34376931]
[1625277381869,2.20527,2150.8,2150.7,53.64176931]
[1625277381971,2.20527,2150.8,2150.7,54.1786164]
[1625277382672,2.20527,2150.8,2150.7,52.298]
[1625277382819,2.20527,2150.8,2150.6,7.14079577]
[1625277383520,2.20527,2150.8,2150.7,16.976821]
[1625277383971,2.20527,2150.8,2150.7,20.46652109]
[1625277384424,2.20527,2150.8,2150.7,72.56772109]
[1625277384523,2.20527,2150.8,2150.7,74.77299109]
[1625277386875,2.20527,2150.8,2150.7,22.67179109]
[1625277390790,2.20527,2150.8,2150.7,5.69497009]
[1625277390890,5.36357,2150.8,2150.7,2.20527]
[1625277391340,5.36357,2150.8,2150.7,4.08652331]
[1625277395217,2.20527,2150.8,2150.7,7.19462331]
[1625277395519,2.20527,2150.8,2150.7,8.00239972]
[1625277396372,2.20527,2150.8,2150.7,5.31337]
[1625277397973,2.20527,2150.8,2150.7,2.20527]
[1625277400331,2.20527,2150.8,2150.7,4.89413052]
[1625277405840,43.00197,2150.8,2150.7,4.89413052]
[1625277407375,2.20527,2150.8,2150.7,4.89413052]
[1625277409931,2.20527,2150.8,2150.7,2.20527]
[1625277410284,2.20527,2150.8,2150.7,4.88775721]
[1625277411035,2.20527,2150.8,2150.7,2.68248721]
[1625277412085,2.20527,2150.8,2150.7,5.73278721]
[1625277415694,43.75077,2150.8,2150.7,5.73278721]
[1625277415792,43.75077,2150.8,2150.7,2.68248721]
[1625277415793,2.20527,2150.8,2150.7,2.68248721]
[1625277416744,2.20527,2150.8,2150.6,2.67994684]
[1625277416845,2.20527,2150.7,2150.6,2.67994684]
[1625277417143,2.20527,2150.7,2150.5,2.20527]
[1625277420168,2.20527,2150.7,2150.6,2.68070431]
[1625277421880,53.66617,2150.7,2150.5,2.20527]
[1625277422333,53.66617,2150.7,2150.5,5.68735649]
[1625277422683,53.66617,2150.7,2150.5,2.20527]
[1625277423184,2.20527,2150.7,2150.5,2.20527]
[1625277423385,2.20527,2150.7,2150.5,5.6867539]
[1625277426452,45.09807,2150.7,2150.5,5.6867539]
[1625277426948,2.20527,2150.7,2150.5,5.6867539]
[1625277430773,2.20527,2150.7,2150.6,2.67819343]
[1625277431475,2.20527,2150.7,2150.6,1.87537144]
[1625277433830,2.20527,2150.7,2150.6,2.68204822]
[1625277434580,2.20527,2150.7,2150.6,1.8775221]
[1625277441002,2.20527,2150.7,2150.6,4.6502221]
[1625277441305,2.20527,2150.7,2150.6,2.7727]
[1625277441504,2.20527,2150.7,2150.6,44.444]
[1625277441706,2.20527,2150.7,2150.6,47.12111071]
[1625277441802,2.20527,2150.7,2150.6,5.44981071]
[1625277442504,2.20527,2150.7,2150.6,2.7727]
[1625277442955,2.20527,2150.7,2150.6,4.97797]
[1625277443104,2.20527,2150.7,2150.6,2.20527]
[1625277443457,2.20527,2150.7,2150.6,5.68442697]
[1625277444110,2.20527,2150.7,2150.6,56.49372697]
[1625277444208,2.20527,2150.7,2150.6,59.62502697]
[1625277444511,2.20527,2150.7,2150.6,76.57433297]
[1625277445824,2.20527,2150.7,2150.6,73.095176]
[1625277448484,2.20527,2150.8,2150.6,73.095176]
[1625277448681,2.20527,2150.8,2150.6,73.23284505]
[1625277448934,2.20527,2150.8,2150.7,2.20527]
[1625277449036,2.20527,2150.8,2150.7,2.3429386]
[1625277449235,2.20527,2150.8,2150.7,19.1432756]
[1625277449333,2.20527,2150.8,2150.7,23.4197703]
[1625277455450,2.20527,2150.8,2150.7,19.1432756]
[1625277455550,2.20527,2150.8,2150.7,19.005607]
[1625277455849,2.20527,2150.8,2150.7,22.48192508]
[1625277456349,2.20527,2150.8,2150.7,66.78612508]
[1625277457003,2.20527,2150.8,2150.7,22.48192508]
[1625277457501,2.20527,2150.8,2150.7,19.005607]
[1625277457701,2.20527,2150.8,2150.7,75.751907]
[1625277458453,2.20527,2150.8,2150.7,75.88957288]
[1625277458655,2.20527,2150.8,2150.7,19.14327288]
[1625277459807,2.20527,2150.8,2150.7,63.05657288]
[1625277460108,2.20527,2150.8,2150.7,19.14327288]
[1625277461120,2.20527,2150.8,2150.7,19.005607]
[1625277462073,2.20527,2150.8,2150.7,22.4820424]
[1625277463780,2.20527,2150.8,2150.7,5.6817054]
[1625277467138,2.20527,2150.8,2150.7,3.4764354]
[1625277467490,2.20527,2150.8,2150.5,3.47926892]
[1625277467590,52.6975,2150.6,2150.5,3.47926892]
[1625277467938,2.20527,2150.8,2150.5,3.47926892]
[1625277469040,53.34817,2150.8,2150.7,2.6763581]
[1625277469592,53.34817,2150.8,2150.7,1.87392809]
[1625277470445,2.20527,2150.8,2150.7,1.87392809]
[1625277471099,4.41054,2150.8,2150.7,1.87392809]
[1625277484400,4.41054,2150.8,2150.7,2.68770891]
[1625277484951,4.41054,2150.8,2150.6,7.01718233]
[1625277485402,4.41054,2150.8,2150.7,2.68821478]
[1625277489257,44.20494,2150.8,2150.7,2.68821478]
[1625277490609,4.41054,2150.8,2150.7,2.68821478]
[1625277492060,54.80844,2150.8,2150.7,2.68821478]
[1625277492259,4.41054,2150.8,2150.7,2.68821478]
[1625277493212,54.81304,2150.8,2150.7,2.68821478]
[1625277493363,54.81304,2150.8,2150.7,1.88527901]
[1625277494367,58.02694,2150.8,2150.7,1.88527901]
[1625277495768,7.62444,2150.8,2150.7,1.88527901]
[1625277498935,7.62444,2150.8,2150.6,1.88402606]
[1625277499287,7.62444,2150.8,2150.7,1.34575086]
[1625277499732,49.01944,2150.8,2150.7,1.34575086]
[1625277500284,49.01944,2150.8,2150.6,1.88402606]
[1625277500484,49.01944,2150.8,2150.7,1.34501175]
[1625277502637,49.01944,2150.8,2150.6,1.88402606]
[1625277503035,49.01944,2150.8,2150.7,1.34361685]
[1625277503788,7.62444,2150.8,2150.7,1.34361685]
[1625277505196,4.41054,2150.8,2150.7,1.34361685]
[1625277506542,47.32574,2150.8,2150.7,1.34361685]
[1625277507846,4.41054,2150.8,2150.7,1.34361685]
[1625277509355,62.85274,2150.8,2150.7,1.34361685]
[1625277510308,4.41054,2150.8,2150.7,1.34361685]
[1625277511424,4.41054,2150.8,2150.7,1.88039141]
[1625277512527,2.20527,2150.8,2150.7,1.88039141]
[1625277512733,2.20527,2150.8,2150.7,46.30409141]
[1625277513085,2.20527,2150.8,2150.7,63.24800041]
[1625277513192,2.20527,2150.8,2150.7,64.8554561]
[1625277513293,2.20527,2151.2,2150.7,69.2659961]
[1625277513996,2.20527,2151.2,2151.1,51.8782]
[1625277514094,2.20527,2151.2,2151.1,55.0417]
[1625277515299,2.20527,2151.2,2151.1,57.24697]
[1625277515652,2.20527,2151.2,2151.1,5.36877]
[1625277517454,2.20527,2151.2,2151.1,57.66957]
[1625277517707,1.0,2152.0,2151.1,57.66957]
[1625277518055,15.1961,2152.1,2151.1,57.66957]
[1625277518158,15.1961,2152.1,2151.2,16.876086]
[1625277518356,1.0,2152.2,2151.2,16.876086]
[1625277518507,1.0,2152.2,2151.5,1.33901023]
[1625277518657,1.37234731,2152.4,2151.5,1.33901023]
[1625277519108,1.37229925,2152.5,2151.6,1.33876548]
[1625277519208,1.37229925,2152.5,2151.6,3.95926548]
[1625277519310,2.20527,2152.2,2152.0,2.20527]
[1625277522068,2.20527,2152.2,2152.0,44.98347]
[1625277522169,2.20527,2152.2,2152.0,2.20527]
[1625277522368,2.20527,2152.2,2151.8,2.20527]
[1625277523319,2.20527,2151.9,2151.8,2.20527]
[1625277526688,57.48897,2151.9,2151.8,2.20527]
[1625277527140,2.20527,2151.9,2151.8,2.20527]
[1625277530658,2.20527,2151.9,2151.3,1.33737755]
[1625277531359,4.41054,2151.9,2151.3,3.54264755]
[1625277532814,4.41054,2151.9,2151.3,2.20527]
[1625277533064,4.41054,2151.9,2151.3,3.5425291]
[1625277533365,4.41054,2151.9,2151.8,2.20527]
[1625277536176,4.41054,2151.9,2151.8,60.41397]
[1625277537828,4.41054,2151.9,2151.8,2.20527]
[1625277539077,2.20527,2151.9,2151.8,2.20527]
[1625277540881,5.98577,2151.9,2151.8,2.20527]
[1625277541436,61.04177,2151.9,2151.8,2.20527]
[1625277541537,61.04177,2151.9,2151.3,2.20527]
[1625277543451,2.20527,2151.4,2151.3,2.20527]
[1625277545559,2.20527,2151.4,2151.3,48.60647]
[1625277546711,2.20527,2151.4,2151.3,2.20527]
[1625277555182,3.20527,2151.9,2151.3,59.99277]
[1625277555285,2.20527,2151.9,2151.3,59.99277]
[1625277555486,2.20527,2151.9,2151.6,2.20527]
[1625277558051,42.8347,2151.7,2151.6,2.20527]
[1625277558153,46.5702,2151.7,2151.6,2.20527]
[1625277558919,3.7355,2151.7,2151.3,2.20527]
[1625277559462,3.7355,2151.7,2151.6,2.20527]
[1625277559560,2.20527,2151.9,2151.6,2.20527]
[1625277561467,2.20527,2151.8,2151.6,2.20527]
[1625277561618,2.20527,2151.8,2151.6,54.86777]
[1625277562219,2.20527,2151.8,2151.7,46.6885]
[1625277562718,2.20527,2151.8,2151.6,54.86777]
[1625277563425,2.20527,2151.8,2151.6,2.20527]
[1625277565979,4.68257,2151.8,2151.6,2.20527]
[1625277567486,4.68257,2151.8,2151.3,2.20527]
[1625277567688,48.3776,2151.1,2151.0,1.33970098]
[1625277567787,51.7552,2151.1,2151.0,1.33970098]
[1625277567986,51.7552,2151.1,2150.9,2.20527]
[1625277569488,51.7552,2151.1,2150.7,1.34044771]
[1625277569637,2.20527,2151.0,2150.7,1.34044771]
[1625277569788,2.20527,2151.0,2150.6,1.34084517]
[1625277569987,39.9977,2150.7,2150.6,1.34084517]
[1625277570237,39.9977,2150.7,2150.5,1.34085472]
[1625277570688,2.20527,2151.0,2150.5,1.34085472]
[1625277571446,39.994,2150.6,2150.5,1.34085472]
[1625277571553,45.77727,2150.6,2150.5,1.34085472]
[1625277572509,45.77727,2150.6,2150.4,1.34123029]
[1625277573022,45.77727,2150.6,2150.3,1.3418075]
[1625277573525,2.20527,2150.4,2150.3,1.3418075]
[1625277574625,47.55657,2150.4,2150.3,1.3418075]
[1625277575227,2.20527,2150.4,2150.3,1.3418075]
[1625277577580,2.20527,2150.4,2150.2,1.34172459]
[1625277582187,2.20527,2150.4,2150.1,1.34184828]
[1625277582289,53.326,2150.3,2150.1,1.34184828]
[1625277583341,53.326,2150.3,2150.0,3.5472728]
[1625277583593,53.326,2150.3,2150.1,1.3418916]
[1625277584308,53.326,2150.3,2150.0,3.54742749]
[1625277584697,2.20527,2150.4,2150.0,2.20527]
[1625277585209,52.055,2150.3,2150.0,2.20527]
[1625277585615,2.20527,2150.1,2150.0,2.20527]
[1625277586567,60.55507,2150.1,2150.0,2.20527]
[1625277587316,60.55507,2150.1,2149.8,1.34219865]
[1625277587622,62.76034,2150.1,2149.8,1.34219865]
[1625277590581,62.76034,2150.1,2149.7,3.54764333]
[1625277591633,2.20527,2149.8,2149.7,3.54764333]
[1625277592233,56.55457,2149.8,2149.7,3.54764333]
[1625277592584,56.55457,2149.8,2149.7,2.20527]
[1625277597842,56.55457,2149.8,2149.0,1.34353419]
[1625277597943,2.20527,2149.8,2149.0,1.34353419]
[1625277599197,2.20527,2149.8,2148.9,1.34274344]
[1625277599447,2.20527,2149.8,2149.0,1.34259792]
[1625277599700,2.20527,2149.8,2149.4,2.20527]
[1625277601504,2.20527,2149.8,2149.4,5.84077]
[1625277601803,2.20527,2149.8,2149.7,2.20527]
[1625277602008,2.20527,2149.8,2149.7,51.25857]
[1625277602258,2.20527,2149.8,2149.7,2.20527]
[1625277604617,2.20527,2150.1,2149.7,2.20527]
[1625277604717,2.20527,2150.1,2149.7,5.37337]
[1625277604972,2.20527,2150.1,2150.0,56.8851]
[1625277605218,2.20527,2150.1,2149.8,16.910422]
[1625277605319,2.20527,2150.1,2149.7,2.20527]
[1625277605822,2.20527,2150.1,2150.0,2.20527]
[1625277613303,2.20527,2150.1,2150.0,7e-05]
[1625277613401,2.20527,2150.1,2149.3,6.09847489]
[1625277613550,5.53457,2150.1,2149.3,6.09847489]
[1625277613700,5.53457,2150.1,2149.3,4.759]
[1625277613800,2.20527,2149.5,2149.4,2.20527]
[1625277613901,5.90977,2149.5,2149.4,2.20527]
[1625277614050,49.87207,2149.5,2149.4,2.20527]
[1625277614851,5.90977,2149.5,2149.4,2.20527]
[1625277615403,62.68427,2149.5,2149.4,2.20527]
[1625277615811,64.88954,2149.5,2149.4,2.20527]
[1625277618522,8.11504,2149.5,2149.4,2.20527]
[1625277620031,48.88284,2149.5,2149.4,2.20527]
[1625277621135,8.11504,2149.5,2149.4,2.20527]
[1625277621688,53.83774,2149.5,2149.4,2.20527]
[1625277622091,8.11504,2149.5,2149.4,2.20527]
[1625277623044,47.46624,2149.5,2149.4,2.20527]
[1625277623292,8.11504,2149.5,2149.4,2.20527]
[1625277623744,8.11504,2149.5,2148.4,1.3350385]
[1625277623845,2.20527,2149.0,2148.8,2.20527]
[1625277624297,54.6027,2148.9,2148.8,2.20527]
[1625277624801,2.20527,2149.0,2148.8,2.20527]
[1625277625148,2.20527,2149.0,2148.8,4.65047]
[1625277625601,2.20527,2149.0,2148.9,71.036882]
[1625277625700,15.6293,2150.0,2148.9,71.036882]
[1625277625851,2.20527,2149.5,2149.4,2.20527]
[1625277627205,58.23057,2149.5,2149.4,2.20527]
[1625277628421,61.76457,2149.5,2149.4,2.20527]
[1625277628572,5.73927,2149.5,2149.4,2.20527]
[1625277630176,46.18437,2149.5,2149.4,2.20527]
[1625277630731,46.18437,2149.5,2148.8,2.20527]
[1625277631330,5.73927,2149.5,2148.8,2.20527]
[1625277631429,2.20527,2149.5,2148.8,2.20527]
[1625277631928,2.20527,2149.5,2149.1,2.20527]
[1625277633882,2.20527,2149.2,2149.1,2.20527]
[1625277633982,47.52797,2149.2,2149.1,2.20527]
[1625277634439,2.20527,2149.2,2149.1,2.20527]
[1625277635243,2.20527,2149.2,2148.8,2.20527]
[1625277635695,54.5854,2149.1,2148.8,2.20527]
[1625277635848,2.20527,2149.2,2148.8,2.20527]
[1625277635944,4.41054,2149.2,2148.8,2.20527]
[1625277636595,54.5981,2149.0,2148.8,2.20527]
[1625277636706,57.3902,2149.0,2148.8,2.20527]
[1625277637955,2.7921,2149.0,2148.8,2.20527]
[1625277638052,4.41054,2149.2,2148.8,2.20527]
[1625277638456,40.2705,2148.9,2148.8,2.20527]
[1625277639861,4.41054,2149.2,2148.8,2.20527]
[1625277639964,2.20527,2148.9,2148.8,2.20527]
[1625277640864,56.37307,2148.9,2148.8,2.20527]
[1625277641227,2.20527,2148.9,2148.8,2.20527]
[1625277645684,56.35727,2148.9,2148.8,2.20527]
[1625277645989,2.20527,2148.9,2148.8,2.20527]
[1625277656112,49.48727,2148.9,2148.8,2.20527]
[1625277656923,2.20527,2148.9,2148.8,2.20527]
[1625277657074,2.20527,2148.9,2148.8,5.74837]
[1625277662799,2.20527,2148.9,2148.8,3.5431]
[1625277662899,2.20527,2148.9,2148.7,2.20527]
[1625277664103,2.20527,2148.8,2148.7,2.20527]
[1625277669167,2.20527,2148.8,2148.5,1.34142902]
[1625277669420,2.20527,2148.8,2148.4,2.20527]
[1625277669421,44.414,2148.6,2148.4,2.20527]
[1625277669922,2.20527,2148.8,2148.4,2.20527]
[1625277670022,2.20527,2148.8,2148.4,5.97967]
[1625277670269,2.20527,2148.5,2148.4,5.97967]
[1625277672775,2.20527,2148.8,2148.4,5.97967]
[1625277672926,1.3707096,2149.8,2148.7,41.2888]
[1625277673025,2.3707096,2149.8,2148.7,41.2888]
[1625277673125,1.3707096,2149.8,2148.7,41.2888]
[1625277673426,1.37048171,2150.2,2149.7,47.9395]
[1625277673574,1.37048171,2150.2,2149.7,50.4153]
[1625277674025,1.0,2150.5,2149.7,50.4153]
[1625277674129,15.4622,2150.8,2149.7,50.4153]
[1625277674227,2.20527,2150.2,2150.1,2.20527]
[1625277676192,4.41054,2150.2,2150.1,2.20527]
[1625277677397,2.20527,2150.2,2150.1,2.20527]
[1625277678248,2.20527,2150.5,2150.1,2.20527]
[1625277678449,2.20527,2150.5,2149.9,2.20527]
[1625277680211,2.20527,2150.0,2149.9,2.20527]
[1625277680610,2.20527,2150.0,2149.8,2.20527]
[1625277681161,2.20527,2150.0,2149.7,1.34517073]
[1625277681362,40.3944,2149.9,2149.7,1.34517073]
[1625277681611,40.3944,2149.9,2149.4,1.34618859]
[1625277681913,43.6705,2149.9,2149.4,1.34618859]
[1625277682313,2.20527,2149.5,2149.4,1.34618859]
[1625277682464,2.20527,2149.5,2149.3,3.55248899]
[1625277682919,2.20527,2149.5,2149.3,2.20527]
[1625277688722,46.28137,2149.5,2149.3,2.20527]
[1625277689593,2.20527,2149.5,2149.3,2.20527]
[1625277691147,53.31667,2149.5,2149.3,2.20527]
[1625277691904,2.20527,2149.5,2149.3,2.20527]
[1625277692706,51.55147,2149.5,2149.3,2.20527]
[1625277693662,2.20527,2149.5,2149.3,2.20527]
[1625277696465,48.76817,2149.5,2149.3,2.20527]
[1625277697671,48.76817,2149.5,2149.1,1.34771847]
[1625277698372,2.20527,2149.2,2149.1,3.55298847]
[1625277698474,4.68777,2149.2,2149.1,3.55298847]
[1625277699928,4.68777,2149.2,2149.1,4.09364674]
[1625277703435,4.68777,2149.2,2149.1,1.88837674]
[1625277703841,4.68777,2149.2,2148.8,1.35205224]
[1625277704340,2.20527,2148.9,2148.8,1.35205224]
[1625277705415,51.154,2148.8,2148.6,3.55809546]
[1625277706416,2.20527,2148.7,2148.6,3.55809546]
[1625277706516,5.66227,2148.7,2148.6,3.55809546]
[1625277709629,5.66227,2148.7,2148.6,2.20527]
[1625277713741,46.84277,2148.7,2148.6,2.20527]
[1625277713995,5.66227,2148.7,2148.6,2.20527]
[1625277714143,2.20527,2148.9,2148.6,2.20527]
[1625277714345,2.20527,2148.9,2148.6,4.09439923]
[1625277714442,2.20527,2148.9,2148.8,57.90187]
[1625277714543,2.20527,2148.9,2148.8,2.20527]
[1625277714647,2.20527,2148.9,2148.8,4.09334839]
[1625277715095,2.20527,2148.9,2148.8,3.55393472]
[1625277715898,2.20527,2148.9,2148.8,4.09360751]
[1625277717861,2.20527,2148.9,2148.8,2.20527]
[1625277718267,2.20527,2148.9,2148.8,4.09328683]
[1625277718624,2.20527,2148.9,2148.8,3.55413712]
[1625277718876,2.20527,2148.9,2148.8,2.20527]
[1625277719276,2.20527,2148.9,2148.6,3.55444482]
[1625277719376,5.27357,2148.9,2148.6,3.55444482]
[1625277719830,5.27357,2148.9,2148.6,2.20527]
[1625277720429,2.20527,2148.7,2148.6,2.20527]
[1625277732723,41.94687,2148.7,2148.6,2.20527]
[1625277741577,41.94687,2148.7,2148.6,5.34127]
[1625277742779,2.20527,2148.7,2148.6,5.34127]
[1625277743627,43.53617,2148.7,2148.6,5.34127]
[1625277743829,43.53617,2148.7,2148.6,2.20527]
[1625277746885,2.20527,2148.7,2148.6,2.20527]
[1625277749188,2.20527,2148.7,2148.3,2.20527]
[1625277749288,2.20527,2148.7,2148.0,16.97143035]
[1625277749489,49.9203,2148.2,2148.0,16.97143035]
[1625277749589,49.9203,2148.2,2148.0,1.34423035]
[1625277749940,1.0,2148.6,2148.0,1.34423035]
[1625277750041,2.20527,2148.7,2147.9,1.34251522]
[1625277750491,48.8058,2148.4,2147.9,1.34251522]
[1625277750743,2.20527,2148.1,2148.0,2.20527]
[1625277751395,2.20527,2148.1,2148.0,3.54766308]
[1625277752622,4.41054,2148.1,2148.0,3.54766308]
[1625277753824,4.41054,2148.1,2148.0,2.20527]
[1625277756081,48.05464,2148.1,2148.0,2.20527]
[1625277757537,4.41054,2148.1,2148.0,2.20527]
[1625277759391,61.32524,2148.1,2148.0,2.20527]
[1625277760290,4.41054,2148.1,2148.0,2.20527]
[1625277763799,4.41054,2148.1,2147.7,1.34350933]
[1625277764450,4.41054,2148.1,2147.6,1.34542592]
[1625277764599,52.15074,2148.1,2147.6,1.34542592]
[1625277764698,2.20527,2147.7,2147.6,3.55069592]
[1625277765152,4.50137,2147.7,2147.6,3.55069592]
[1625277765507,61.40507,2147.7,2147.6,3.55069592]
[1625277765603,61.40507,2147.7,2147.6,2.20527]
[1625277766253,4.50137,2147.7,2147.6,2.20527]
[1625277766353,2.20527,2147.7,2147.6,2.20527]
[1625277766804,2.20527,2147.7,2147.6,50.51307]
[1625277766904,2.20527,2147.7,2147.6,2.20527]
[1625277768357,43.40057,2147.7,2147.6,2.20527]
[1625277769809,43.40057,2147.7,2147.5,1.34711843]
[1625277770261,43.40057,2147.7,2147.4,2.20527]
[1625277770712,2.20527,2147.5,2147.4,2.20527]
[1625277773284,2.20527,2147.5,2147.2,1.35202809]
[1625277773381,2.20527,2147.5,2147.1,1.35149066]
[1625277774836,2.20527,2147.2,2147.1,1.35149066]
[1625277776246,56.9381,2147.1,2147.0,1.35249285]
[1625277776796,59.14337,2147.1,2147.0,1.35249285]
[1625277777548,59.14337,2147.1,2146.8,2.7049857]
[1625277777549,59.14337,2147.1,2146.8,1.35420202]